{"text_format":"1","workbook":"xlsx","n_sheets":3,"sheets":["Prompt","Cedula1B","Enviar"],"not_rendered":{"charts":0,"images":4,"macros":1,"external_links":0,"defined_names":1,"comments":0,"pivot_tables":0},"unopened":[],"bounds":{"document_bytes":16777216,"sheet_cells":100000,"rows_first":2000,"rows_last":500,"rows_between":2000,"halvings":0,"cell_chars":16384,"cell_head_chars":4096},"cells_cut":0,"cells_raw":0,"read":"whole","date_system":"1900"}

{"sheet":"Prompt","index":0,"n_rows":38,"n_cols":4,"rows_kept":38,"cut":false,"hidden":false,"merged":[[0,3,1,5],[3,1,5,8],[8,1,9,8],[37,1,38,8]]}
[null,null,null,"¡ATENCIÓN!"]
[]
[]
[null,"Para hacer uso de las funcionalidades de esta Cédula Electrónica debe habilitar macros"]
[]
[]
[]
[]
[null,"Si utiliza Excel 2000, 2002, 2003 siga el siguiente procedimiento:"]
[]
[]
[]
[]
[]
[]
[]
[]
[]
[]
[]
[]
[]
[]
[]
[]
[]
[]
[]
[]
[]
[]
[]
[]
[]
[]
[]
[]
[null,"Si utiliza Excel 2007 siga el siguiente procedimiento:"]

{"sheet":"Cedula1B","index":1,"n_rows":134,"n_cols":15,"rows_kept":134,"cut":false,"hidden":true,"merged":[[55,2,64,3],[65,2,66,3],[67,2,69,3],[77,10,82,13],[51,2,54,3],[51,4,54,4],[51,10,53,10],[51,11,53,11],[51,12,52,14],[53,12,54,12],[53,13,54,13],[53,14,54,14],[0,13,0,14],[1,5,1,11],[2,5,2,11],[3,5,3,11],[12,12,12,13],[89,10,89,12],[14,5,14,13],[12,5,12,6],[1,13,3,14],[16,11,16,13],[16,5,16,8],[27,13,27,14],[26,5,27,6],[27,9,27,10],[27,7,27,8],[26,7,26,14],[27,11,27,12],[26,2,28,4],[35,5,36,6],[36,7,36,8],[35,2,37,4],[35,7,35,14],[36,11,36,12],[36,9,36,10],[36,13,36,14],[42,3,42,4],[91,13,91,14],[90,2,90,6],[90,7,90,9],[90,10,90,12],[90,13,90,14],[91,2,91,6],[91,7,91,9],[91,10,91,12],[86,2,86,14],[88,7,88,9],[89,13,89,14],[89,2,89,6],[88,10,88,12],[88,13,88,14],[89,7,89,9]]}
[null,null,null,null,null,null,null,null,null,null,null,null,null,"CÉDULA"]
[null,null,null,null,null,"CENSO EDUCATIVO 2024",null,null,null,null,null,null,null,"1B"]
[null,null,null,null,null,"Educación Básica Regular"]
[null,null,null,null,null,"Inicial Escolarizada"]
[null,null,"Versión :",1]
[null,null,"INSTRUCCIONES DEL FORMATO ELECTRÓNICO "]
[]
[]
[]
[null,null,"IDENTIFICACIÓN DEL SERVICIO EDUCATIVO"]
[]
[]
[null,null,"1.  CÓDIGO MODULAR :",null,null,null,null,null,null,null,null,"  2.  CÓDIGO DE LOCAL EDUCATIVO :  "]
[]
[null,null,"3.  NOMBRE DEL SERVICIO:"]
[]
[null,null,"4. DISTRITO :",null,null,null,null,null,null,null,"LOCALIDAD :  ",null,null,null,{"$f":"IF(M17=\"2: Privada\",\"X\",\"\")","v":""}]
[]
[]
[]
[null,null,"FORMA DE ATENCIÓN : ",null,null,null,null,"A2: Jardín",null,null,null,"A3: Cuna- Jardín"]
[]
[]
[null,null,"100. RESULTADO DEL EJERCICIO EDUCATIVO.\nSólo para alumnos de 3 a más años de edad."]
[null,null,"Complete y remita esta sección entre diciembre del año 2024 y enero del año 2025."]
[null,null,"101 - RESULTADO DEL EJERCICIO EDUCATIVO A DICIEMBRE DE 2024, POR EDAD Y SEXO."]
[null,null,"SITUACIÓN",null,null,"TOTAL",null,"EDAD Y SEXO"]
[null,null,null,null,null,null,null,3,null,4,null,5,null,"6 y más"]
[null,null,null,null,null,"H","M","H","M","H","M","H","M","H","M"]
["00",null,"TOTAL MATRÍCULA",null,null,{"$f":"SUM(F31:F34)","v":0},0,0,0,0,0,0,0,0,0]
["01",null,"Promovidos",null,null,{"$f":"SUM(H31,J31,L31,N31)","v":0},0]
["02",null,"Trasladados a otros SS.EE.",null,null,0,0]
["03",null,"Retirados",null,null,0,0]
["04",null,"Fallecidos",null,null,0,0]
[null,null,"102 - RETIRADOS POR EDAD Y SEXO, SEGÚN MOTIVO"]
[null,null,"MOTIVO",null,null,"TOTAL",null,"EDAD Y SEXO"]
[null,null,null,null,null,null,null,3,null,4,null,5,null,"6 y más"]
[null,null,null,null,null,"H","M","H","M","H","M","H","M","H","M"]
["00",null,"TOTAL",null,null,{"$f":"SUM(F40:F43)","v":0},0,0,0,0,0,{"$f":"SUM(L40:L43)","v":0},{"$f":"SUM(M40:M43)","v":0},{"$f":"SUM(N40:N43)","v":0},{"$f":"SUM(O40:O43)","v":0}]
["01",null,"Situación económica",null,null,{"$f":"SUM(H40,J40,L40,N40)","v":0},0]
["02",null,"Violencia",null,null,0,0]
["03",null,"Enfermedad",null,null,0,0]
["04",null,"Otros",null,null,0,0]
[null,null,"Nota.- Los totales de esta tabla deben ser iguales a los reportados en el rubro \"Retirados\" de la tabla 101, seún edad que corresponda."]
[]
[null,null,"400. MATERIALES EDUCATIVOS (Solo para gestión pública)"]
[]
[null,null,null,"Tipo de Gestión :",null,null,null,"401. ¿RECIBIÓ MATERIALES CORRESPONDIENTES A LA DOTACIÓN 2024?"]
[null,null,null,null,"Pública",null,null,null,null,"Sí    ",null,null,"No  ",""]
[null,null,null,null,"Privada"]
[null,null,"402. MATERIALES EDUCATIVOS"]
[null,null,"BENEFI- CIARIOS",null,"MATERIAL EDUCATIVO",null,null,null,null,null,"¿Recibio los materiales?","Primera \nFecha de\nRecepción","Cantidad de Material"]
[]
[null,null,null,null,null,null,null,null,null,{"$f":"COUNTIF(K56:K70,\"NO\")","v":0},null,null,"Total\nRecibido","Material Sobrante","Material Faltante"]
[null,null,null,null,null,null,null,null,null,{"$f":"COUNTIF(K56:K70,\"SI\")+COUNTIF(K56:K70,\"NO\")","v":0}," SI - NO","DD/MM/AA"]
["01",null,"Niños y niñas de 3 años",null,"01: Juego de vasos lógicos (3 juegos de 8 vasos c/u)"]
["02",null,null,null,"02: Vehículo de madera para jalar (1 unidad)"]
["03",null,null,null,"03: Juego de aros para ensartar (2 Juegos con soportey 6 aros c/u)"]
["04",null,null,null,"04: Juego de cubos sensoriales (1 juego x 12 pzs)"]
["05",null,null,null,"05: Juego de pañuelos de colores (1 juego de 6 pzs)"]
["06",null,null,null,"06: Juego de tres muñecos de tela (1 juego de 3 pzs)"]
["07",null,null,null,"07: Juego de canastas (1 juego x 6 pzs)"]
["08",null,null,null,"08: Juego de piezas para enroscar (1 juego de 8 pzs )"]
["09",null,null,null,"09: Kit de 6 animales de peluche (1 juego de 6 pzs)"]
["10",null,null,null,"10: Kit de bloques de construcción (1 juego de 86 pzs y envase)"]
["11",null,"Niños y niñas de 4 y 5 años",null,"11: Material impreso para niños y niñas de 4 años"]
["12",null,null,null,"12: Material impreso para niños y niñas de 5 años"]
["13",null,"Niños y niñas de 4 y 5 años EIB",null,"13: Material impreso de biblioteca de aula para niños y niñas de 3 años"]
["14",null,null,null,"14: Material impreso de biblioteca de aula para niños y niñas de 4 años"]
["15",null,null,null,"15: Material impreso de biblioteca de aula para niños y niñas de 5 años"]
[]
[null,null,"500. OTROS RECURSOS DISPONIBLES PARA LA ENSEÑANZA (Para II.EE. Públicas y Privadas)"]
[]
[null,null,null,"502. ¿QUÉ EDADES ATENDIDAS CUENTAN CON UNA BIBLIOTECA DE AULA?  DETALLE EL NÚMERO DE EJEMPLARES"]
[null,null,null,null,"(LIBROS QUE LA CONFORMAN)."]
[null,null,null,"(Marque con una “X” la edad correspondiente y anote el número total de ejemplares según corresponda)."]
[null,null,null,"Edad Atendida",null,null,null,null,"Nº Total de Ejemplares"]
["1",null,null,null," 0 años",null,null,null,null,null,"Las bibliotecas de aula están constituidas por libros, láminas y otros materiales didácticos similares, puestos al alcance de los estudiantes en el aula."]
["2",null,null,null," 1 año"]
["3",null,null,null," 2 años"]
["4",null,null,null," 3 años"]
["5",null,null,null," 4 años"]
["6",null,null,null," 5 años y más"]
[null,null,null,null," NINGÚNA EDAD",null,null,null,{"$f":"SUM(I78:I83)","v":0}]
[]
[]
[null,null,"DATOS DEL RESPONSABLE DEL LLENADO DE LA CÉDULA"]
[]
[null,null,null,"NOMBRES Y APELLIDOS",null,null,null,"CARGO",null,null,"CORREO ELECTRÓNICO",null,null,"TELÉFONO"]
["1"]
["2"]
["3"]
[]
[]
[]
["DIRECTOR(A)"]
["SUB DIRECTOR(A)"]
["DOCENTE"]
["COORDINADOR(A)"]
["ASESOR"]
["ADMINISTRATIVO"]
["ASISTENTE"]
["AUXILIAR"]
["SECRETARIA(O)"]
["ESTADÍSTICO"]
["ESPECIALISTA"]
["BIBLIOTECARIO"]
["CARE"]
["COMANDANTE PNP"]
["CONTADOR"]
["DAIP"]
["DIGITADOR(A)"]
["GERENTE"]
["JEFE ACADÉMICO"]
["JEFE ADMINISTRATIVO"]
["JEFE DE AREA"]
["JEFE DE LABORATORIO"]
["JEFE DE PERSONAL"]
["JEFE DE SEDE"]
["JEFE UNIDAD"]
["OFICINISTA"]
["OPERADOR DE SISTEMAS"]
["PERSONAL DE SERVICIO"]
["PROGRAMADOR"]
["PROMOTOR(A)"]
["PSICOLOGO"]
["REGISTRADOR(A)"]
["REPRESENTANTE LEGAL"]
["SOPORTE TECNOLOGICO"]
["TÉCNICO ADMINISTRATIVO"]
["TESORERO(A)"]
["TRABAJADOR SOCIAL"]
["TUTOR"]
["OTROS"]

{"sheet":"Enviar","index":2,"n_rows":9,"n_cols":3,"rows_kept":9,"cut":false,"hidden":true,"merged":[[0,0,0,3],[1,0,1,3]]}
["CENSO EDUCATIVO 2024"]
["RESULTADO DEL EJERCICIO EDUCATIVO"]
[]
[]
[null,"Paso 1:","Realice el ENVÍO con su clave EOL."]
[]
[null,"Paso 2:","Una vez realizado el ENVÍO,  Revise su constancia de envio."]
[]
[null,"  ADVERTENCIA","Asegúrese de registrar toda la información del nivel informante"]